bitfinex-derivatives/quotes_SOLF0:USTF0_20250911
["timestamp","ask_amount","ask_price","bid_price","bid_amount"]
[1757596402480,7.24,225.15,225.02,3.67]
[1757596404677,7.24,225.15,225.02,7.37326129]
[1757596404879,7.24,225.15,225.02,3.67]
[1757596406177,3.48074892,225.13,225.01,3.70326129]
[1757596406382,10.76374778,225.12,225.0,0.7731787]
[1757596406580,7.24,225.12,225.01,3.67]
[1757596406784,24.3133498,225.56,225.07,3.67]
[1757596406785,7.24,225.21,225.07,3.67]
[1757596407082,3.48074892,225.18,225.08,3.70326129]
[1757596407280,3.48074892,225.14,225.03,3.70326129]
[1757596407476,3.52434965,225.13,225.02,3.66]
[1757596407786,3.52434965,225.12,225.02,3.66]
[1757596407982,10.98074892,225.14,225.02,3.66]
[1757596408175,10.98074892,225.14,225.0,0.7731787]
[1757596408176,7.5,225.12,225.0,0.7731787]
[1757596410086,7.5,225.12,225.01,3.66]
[1757596413083,3.51986299,225.11,225.0,0.7731787]
[1757596413288,7.5,225.12,225.0,0.7731787]
[1757596413589,3.51965501,225.11,225.0,0.7731787]
[1757596413890,7.5,225.12,225.0,0.7731787]
[1757596414082,7.5,225.12,225.01,3.66]
[1757596414688,3.52028185,225.11,225.0,0.7731787]
[1757596414888,10.98074892,225.12,225.0,0.7731787]
[1757596415187,7.5,225.1,225.0,0.7731787]
[1757596415980,7.5,225.07,225.0,0.7731787]
[1757596416186,3.48074892,225.04,225.0,0.7731787]
[1757596416483,7.5,224.96,224.87,3.70326129]
[1757596416686,7.5,224.92,224.83,3.70326129]
[1757596416890,3.48074892,224.86,224.8,3.70326129]
[1757596417193,7.5,224.85,224.7,4.44]
[1757596417393,7.5,224.81,224.7,4.44]
[1757596418187,7.5,224.81,224.65,303.0]
[1757596418188,3.48074892,224.78,224.65,303.0]
[1757596418489,8.80670151,224.82,224.63,13.51682766]
[1757596418685,10.79878898,224.81,224.63,13.51682766]
[1757596418889,7.5,224.79,224.62,4.44]
[1757596420892,7.5,224.86,224.64,4.44]
[1757596421602,9.57670151,224.87,224.64,4.44]
[1757596421895,7.5,224.8,224.64,4.44]
[1757596422196,7.5,224.8,224.57,4.44]
[1757596422797,8.80670151,224.75,224.56,7.0]
[1757596423093,7.5,224.74,224.56,7.0]
[1757596423394,7.5,224.74,224.52,298.58]
[1757596423594,8.80670151,224.75,224.53,68.84]
[1757596423795,8.80670151,224.74,224.52,298.58]
[1757596423987,7.5,224.67,224.52,298.58]
[1757596424192,8.80670151,224.68,224.52,298.58]
[1757596424394,7.5,224.67,224.52,298.58]
[1757596424593,8.80670151,224.68,224.52,298.58]
[1757596424992,7.5,224.67,224.52,298.58]
[1757596425192,7.5,224.67,224.51,4.44]
[1757596425391,7.5,224.67,224.3,4.95747344]
[1757596425392,7.5,224.61,224.42,17.61537117]
[1757596425698,7.5,224.59,224.42,13.17537117]
[1757596425893,7.5,224.59,224.36,4.44]
[1757596426291,8.80670151,224.6,224.3,298.84]
[1757596426496,7.5,224.59,224.38,4.44]
[1757596426894,25.64670151,224.64,224.38,66.44]
[1757596427094,7.5,224.63,224.38,43.46]
[1757596427293,7.5,224.63,224.38,4.44]
[1757596427498,7.5,224.6,224.38,4.44]
[1757596428599,7.5,224.6,224.3,298.84]
[1757596428600,7.5,224.53,224.31,4.44]
[1757596429303,7.5,224.53,224.31,17.65525478]
[1757596429496,7.5,224.5,224.31,4.44]
[1757596430796,7.5,224.5,224.32,121.32]
[1757596431001,7.5,224.58,224.33,4.48]
[1757596431502,7.5,224.57,224.35,4.48]
[1757596432091,7.5,224.57,224.36,121.64]
[1757596432293,7.5,224.57,224.37,4.48]
[1757596432800,7.5,224.57,224.39,4.48]
[1757596433003,7.5,224.57,224.4,121.6]
[1757596433203,7.5,224.57,224.41,4.48]
[1757596433700,7.5,224.67,224.41,4.48]
[1757596434203,7.5,224.67,224.44,8.80670151]
[1757596434401,7.5,224.67,224.45,4.48]
[1757596434597,7.5,224.67,224.44,8.80670151]
[1757596434598,7.5,224.67,224.47,4.48]
[1757596435001,15.58,224.71,224.46,299.14]
[1757596435002,23.08,224.71,224.48,121.88]
[1757596435202,7.5,224.71,224.46,299.14]
[1757596435401,7.5,224.71,224.48,4.48]
[1757596435600,7.5,224.78,224.51,4.48]
[1757596435998,7.5,224.78,224.52,88.8]
[1757596436204,7.5,224.78,224.54,4.48]
[1757596436805,20.83,224.78,224.54,4.48]
[1757596437001,20.83,224.78,224.55,2.72]
[1757596437202,20.83,224.78,224.54,8.86]
[1757596437713,20.83,224.78,224.55,5.38]
[1757596437903,7.5,224.78,224.55,5.38]
[1757596438104,7.5,224.78,224.56,4.46]
[1757596438304,7.5,224.78,224.57,2.72]
[1757596438504,8.80670151,224.76,224.58,4.46]
[1757596438704,7.31,224.75,224.58,4.46]
[1757596439202,7.31,224.75,224.59,5.36]
[1757596439410,7.31,224.75,224.58,4.46]
[1757596439608,7.31,224.75,224.59,62.3184]
[1757596439807,7.31,224.75,224.61,66.7728]
[1757596440006,7.31,224.75,224.62,4.0055]
[1757596440209,7.31,224.78,224.55,4.46]
[1757596440509,7.31,224.78,224.56,78.8]
[1757596440700,7.31,224.78,224.55,4.46]
[1757596440902,7.31,224.78,224.57,4.46]
[1757596441102,7.31,224.85,224.57,4.46]
[1757596441307,7.31,224.85,224.59,4.46]
[1757596441503,299.12,224.96,224.56,102.37]
[1757596441504,7.31,224.95,224.65,4.46]
[1757596441906,7.31,224.91,224.66,8.1]
[1757596442109,7.31,224.91,224.67,4.46]
[1757596442411,8.80670151,224.92,224.67,4.46]
[1757596442614,7.31,224.91,224.69,4.46]
[1757596443204,7.31,224.91,224.71,4.46]
[1757596443405,7.31,224.91,224.73,4.46]
[1757596444003,7.31,224.91,224.74,62.0]
[1757596444610,7.31,224.91,224.75,62.76]
[1757596445010,7.31,224.91,224.76,60.82]
[1757596445408,7.31,224.91,224.73,4.46]
[1757596445607,7.31,224.91,224.76,58.98]
[1757596445805,18.56670151,224.98,224.75,57.22]
[1757596446211,7.31,224.97,224.73,4.46]
[1757596446414,18.56670151,224.98,224.67,4.46]
[1757596446415,7.31,224.91,224.67,4.46]
[1757596446606,7.31,224.91,224.68,2.72]
[1757596446803,7.31,224.9,224.67,126.28]
[1757596447207,7.31,224.9,224.68,121.98]
[1757596447913,7.31,224.9,224.67,4.46]
[1757596448109,7.31,224.9,224.67,126.38]
[1757596448313,7.31,224.9,224.67,4.46]
[1757596448709,7.31,224.82,224.62,4.46]
[1757596448908,7.31,224.8,224.62,126.28]
[1757596449715,7.31,224.8,224.63,4.46]
[1757596450414,7.31,224.8,224.64,103.66]
[1757596450615,7.31,224.8,224.63,4.46]
[1757596450817,7.31,224.8,224.65,121.66]
[1757596451116,7.31,224.8,224.63,4.46]
[1757596451413,7.31,224.8,224.65,4.46]
[1757596451713,62.2475,224.85,224.65,4.46]
[1757596451714,7.31,224.85,224.65,4.46]
[1757596451910,7.31,224.92,224.65,4.46]
[1757596452917,7.31,224.92,224.67,4.46]
[1757596454410,7.31,224.92,224.69,4.46]
[1757596454718,7.31,224.92,224.71,4.46]
[1757596454925,7.31,224.92,224.72,62.0]
[1757596455123,7.31,224.92,224.73,4.46]
[1757596455321,7.31,224.92,224.74,23.12]
[1757596455617,7.31,224.92,224.75,4.46]
[1757596455819,61.72,224.93,224.72,20.22]
[1757596456015,16.11670151,224.92,224.7,4.46]
[1757596456619,29.44670151,224.92,224.7,4.46]
[1757596457515,16.11670151,224.92,224.7,4.46]
[1757596457719,7.31,224.92,224.7,4.46]
[1757596458517,29.20670151,224.94,224.71,9.74]
[1757596458719,29.20670151,224.94,224.7,4.46]
[1757596458720,10.60173676,224.93,224.7,4.46]
[1757596459021,7.31,224.93,224.7,4.46]
[1757596459216,8.80670151,224.88,224.7,4.46]
[1757596459416,7.31,224.87,224.63,4.46]
[1757596459618,7.31,224.87,224.64,121.44]
[1757596459811,8.80670151,224.88,224.64,121.44]
[1757596460012,7.31,224.87,224.65,121.44]
[1757596460520,7.31,224.87,224.66,4.46]
[1757596461421,7.31,224.87,224.67,121.32]
[1757596462020,7.31,224.87,224.68,4.46]
[1757596462422,12.63092086,224.87,224.69,121.18]
[1757596462616,12.63092086,224.87,224.68,4.46]
[1757596463122,12.63092086,224.87,224.69,95.12]
[1757596463619,7.31,224.87,224.69,95.12]
[1757596463819,7.31,224.87,224.68,4.46]
[1757596464021,7.31,224.87,224.68,82.68]
[1757596464216,5.32092086,224.88,224.68,82.68]
[1757596464419,23.04,224.91,224.68,82.68]
[1757596464619,7.31,224.85,224.68,4.46]
[1757596465127,7.31,224.85,224.69,4.46]
[1757596465518,7.31,224.82,224.69,4.46]
[1757596473424,7.31,224.82,224.69,87.44]
[1757596474025,7.31,224.82,224.7,4.46]
[1757596475033,7.14,224.88,224.7,4.46]
[1757596475236,7.14,224.88,224.61,298.96]
[1757596475237,7.14,224.88,224.72,4.46]
[1757596475532,7.14,224.88,224.72,97.34]
[1757596475926,7.14,224.88,224.72,99.5]
[1757596476127,7.14,224.88,224.72,4.46]
[1757596477941,7.14,224.86,224.72,4.46]
[1757596478142,7.14,224.84,224.72,4.46]
[1757596478937,5.32092086,224.87,224.64,9.41747344]
[1757596478938,3.33486645,224.83,224.64,9.41747344]
[1757596479239,10.47486645,224.82,224.64,4.46]
[1757596479430,3.33486645,224.81,224.64,4.46]
[1757596480333,3.33486645,224.81,224.65,4.46]
[1757596480642,7.14,224.82,224.66,4.46]
[1757596481039,3.33986218,224.81,224.66,117.0]
[1757596481239,3.33986218,224.8,224.66,117.0]
[1757596481535,5.32092086,224.82,224.66,4.46]
[1757596481737,10.48016621,224.81,224.66,4.46]
[1757596481941,5.32092086,224.92,224.68,4.46]
[1757596482142,3.3410415,224.91,224.69,120.3]
[1757596482336,10.4810415,224.9,224.7,4.46]
[1757596482546,7.14,224.88,224.7,4.46]
[1757596482838,7.14,224.86,224.7,4.46]
[1757596483038,3.3410415,224.85,224.7,4.46]
[1757596483240,7.14,224.84,224.7,4.46]
[1757596483442,3.3410415,224.83,224.7,4.46]
[1757596484845,7.14,224.84,224.7,4.46]
[1757596485743,3.34481232,224.83,224.71,120.04]
[1757596485937,7.14,224.84,224.72,4.46]
[1757596486141,7.14,224.91,224.69,4.95747344]
[1757596486442,7.14,224.86,224.7,4.46]
[1757596486647,7.14,224.84,224.7,4.46]
[1757596486842,3.34466168,224.83,224.7,4.46]
[1757596487147,3.34444457,224.82,224.7,4.46]
[1757596487448,7.14,224.84,224.7,4.46]
[1757596487640,3.3449013,224.83,224.7,4.46]
[1757596487844,3.3449013,224.82,224.7,4.46]
[1757596488049,7.14,224.84,224.7,4.46]
[1757596488347,7.14,224.82,224.7,4.46]
[1757596488551,7.14,224.8,224.7,4.46]
[1757596490352,7.14,224.8,224.68,4.95747344]
[1757596490543,3.34867028,224.79,224.66,9.41747344]
[1757596490744,3.34867028,224.78,224.66,9.41747344]
[1757596491047,7.14,224.8,224.66,9.41747344]
[1757596491238,3.33926248,224.79,224.66,9.41747344]
[1757596491437,7.14,224.8,224.67,4.95747344]
[1757596492749,7.14,224.8,224.68,4.46]
[1757596493247,18.19266996,224.9,224.48,6.89]
[1757596493248,13.33,224.69,224.48,6.89]
[1757596493546,7.14,224.65,224.48,6.89]
[1757596493746,4.35588457,224.64,224.48,6.89]
[1757596494049,4.35588457,224.63,224.48,6.89]
[1757596494249,4.35588457,224.62,224.5,6.89]
[1757596494450,4.35588457,224.61,224.5,6.89]
[1757596494651,7.14,224.66,224.5,6.89]
[1757596494850,7.75184785,224.65,224.51,121.12]
[1757596495045,7.7518849,224.64,224.52,6.89]
[1757596495348,7.14,224.62,224.52,6.89]
[1757596496742,7.14,224.7,224.52,6.89]
[1757596496943,10.26141702,224.69,224.52,6.89]
[1757596497150,7.14,224.67,224.52,6.89]
[1757596497445,7.26233415,224.66,224.52,6.89]
[1757596497644,3.68210646,224.65,224.52,6.89]
[1757596497850,10.64210646,224.64,224.52,6.89]
[1757596498053,3.68210646,224.63,224.52,6.89]
[1757596498352,3.68210646,224.62,224.52,6.89]
[1757596498552,6.96,224.65,224.47,127.68]
[1757596498845,3.67417343,224.64,224.47,127.66]
[1757596499050,3.67417343,224.63,224.47,127.66]
[1757596499363,6.96,224.65,224.48,6.84]
[1757596499550,17.0017562,224.64,224.34,6.84]
[1757596499751,18.52,224.7,224.36,6.84]
[1757596499752,5.32092086,224.61,224.36,6.84]
[1757596499950,10.6317562,224.6,224.36,6.84]
[1757596500255,6.96,224.58,224.36,6.84]
[1757596500748,6.96,224.6,224.37,6.84]
[1757596500946,6.96,224.58,224.38,120.92]
[1757596501148,6.96,224.56,224.38,120.92]
[1757596501346,3.65684279,224.55,224.39,6.84]
[1757596501547,20.29,224.6,224.39,6.84]
[1757596501747,6.96,224.58,224.39,6.84]
[1757596502051,3.65203871,224.57,224.39,6.84]
[1757596502260,7.19830238,224.56,224.39,6.84]
[1757596502456,6.96,224.58,224.39,6.84]
[1757596503055,3.65805385,224.57,224.39,6.84]
[1757596503255,5.32092086,224.61,224.39,6.84]
[1757596503256,29.26897471,224.56,224.39,6.84]
[1757596503557,6.96,224.53,224.35,6.84]
[1757596503753,3.65805385,224.52,224.35,6.84]
[1757596504457,6.96,224.53,224.35,6.84]
[1757596504658,6.96,224.51,224.35,6.84]
[1757596504858,6.96,224.51,224.36,120.86]
[1757596505161,6.96,224.51,224.35,6.84]
[1757596505450,18.65092086,224.56,224.34,299.06]
[1757596505656,18.65092086,224.56,224.35,6.84]
[1757596505657,6.96,224.5,224.35,6.84]
[1757596506559,6.96,224.48,224.35,6.84]
[1757596507056,6.96,224.55,224.35,6.84]
[1757596507259,6.96,224.6,224.35,6.84]
[1757596507459,3.69656818,224.59,224.35,6.84]
[1757596507651,3.69656818,224.58,224.35,6.84]
[1757596507852,3.69656818,224.57,224.35,6.84]
[1757596508058,6.96,224.6,224.39,6.84]
[1757596508257,3.70171836,224.59,224.41,6.84]
[1757596508461,3.70140558,224.58,224.43,6.84]
[1757596508656,6.96,224.6,224.43,6.84]
[1757596508960,3.70235888,224.59,224.43,6.84]
[1757596509160,6.96,224.57,224.43,6.84]
[1757596509365,3.70303914,224.56,224.44,121.04]
[1757596509662,10.66303914,224.55,224.43,6.84]
[1757596509854,3.70303914,224.54,224.43,6.84]
[1757596510054,6.96,224.6,224.43,62.0]
[1757596510258,3.71184746,224.59,224.44,6.84]
[1757596510555,3.71184746,224.58,224.44,6.84]
[1757596510756,6.96,224.65,224.44,6.84]
[1757596510964,207.38024784,224.79,224.4,126.38092086]
[1757596510965,6.96,224.75,224.52,6.84]
[1757596511258,3.7156917,224.74,224.54,6.84]
[1757596511453,3.7156917,224.73,224.54,6.84]
[1757596511657,3.7156917,224.72,224.54,6.84]
[1757596511851,6.96,224.75,224.54,6.84]
[1757596512259,6.96,224.7,224.54,6.84]
[1757596513555,6.96,224.7,224.55,39.64]
[1757596513755,6.96,224.7,224.57,6.84]
[1757596514263,6.96,224.7,224.58,51.14]
[1757596514460,6.96,224.7,224.59,72.58]
[1757596514859,6.96,224.79,224.6,6.84]
[1757596515053,8.93770729,224.78,224.6,6.84]
[1757596515364,6.96,224.76,224.6,6.84]
[1757596515565,3.61861708,224.75,224.6,30.76]
[1757596515860,6.96,224.73,224.6,6.84]
[1757596516463,6.96,224.73,224.61,68.14]
[1757596516664,6.96,224.79,224.62,6.84]
[1757596516959,6.96,224.77,224.62,6.84]
[1757596517363,6.96,224.74,224.59,23.22]
[1757596517664,6.96,224.74,224.55,6.84]
[1757596517861,6.96,224.74,224.57,6.84]
[1757596519964,6.96,224.74,224.58,23.68]
[1757596520164,6.96,224.74,224.59,46.08]
[1757596520864,6.96,224.74,224.6,6.84]
[1757596522255,5.32092086,224.73,224.5,6.84]
[1757596522460,253.94164938,224.8,224.52,6.84]
[1757596522461,6.96,224.71,224.52,6.84]
[1757596522665,6.96,224.71,224.54,6.84]
[1757596522867,6.96,224.71,224.56,6.84]
[1757596523970,6.96,224.69,224.52,23.02]
[1757596524170,3.65427543,224.68,224.52,23.02]
[1757596524365,6.96,224.66,224.52,23.02]
[1757596524565,6.96,224.66,224.51,6.84]
[1757596524769,6.96,224.64,224.42,6.84]
[1757596525060,6.96,224.62,224.42,6.84]
[1757596525269,6.96,224.6,224.42,6.84]
[1757596525566,6.96,224.58,224.42,6.84]
[1757596525760,6.96,224.56,224.42,6.84]
[1757596526157,6.96,224.62,224.33,6.84]
[1757596526364,6.96,224.62,224.1,1282.1]
[1757596526365,6.96,224.56,224.35,6.84]
[1757596526559,6.96,224.54,224.35,6.84]
[1757596526957,6.96,224.54,224.36,121.04]
[1757596527161,6.96,224.52,224.36,121.08]
[1757596527366,6.96,224.52,224.35,6.84]
[1757596527771,7.5,224.5,224.35,6.84]
[1757596529072,3.65845912,224.49,224.31,7.44]
[1757596529260,3.65845912,224.48,224.31,7.44]
[1757596529572,3.65898199,224.47,224.31,128.62]
[1757596529871,8.81163427,224.52,224.31,128.62]
[1757596529872,7.5,224.46,224.31,128.62]
[1757596530464,7.5,224.46,224.32,7.44]
[1757596530864,3.65976369,224.45,224.32,7.44]
[1757596531072,7.5,224.46,224.32,7.44]
[1757596531266,7.5,224.46,224.29,299.16]
[1757596531267,10.17494074,224.45,224.29,299.16]
[1757596531464,7.5,224.43,224.29,299.16]
[1757596531668,7.5,224.41,224.27,7.44]
[1757596533069,8.81163427,224.46,224.22,7.44]
[1757596533070,3.65025246,224.4,224.22,7.44]
[1757596533369,11.15025246,224.39,224.22,124.2]
[1757596533578,3.64751366,224.38,224.22,124.2]
[1757596533780,7.5,224.39,224.22,124.2]
[1757596534074,3.64973803,224.38,224.22,124.2]
[1757596534278,7.5,224.39,224.23,7.44]
[1757596534673,3.65091977,224.38,224.23,7.44]
[1757596534970,7.5,224.39,224.23,7.44]
[1757596536379,3.63801345,224.38,224.23,7.44]
[1757596536571,7.5,224.39,224.23,7.44]
[1757596536772,7.5,224.37,224.13,7.44]
[1757596536973,7.5,224.35,224.13,7.44]
[1757596537178,3.63629444,224.34,224.13,7.44]
[1757596537374,7.5,224.32,224.13,20.61500494]
[1757596537577,7.5,224.32,224.14,7.44]
[1757596538179,7.5,224.32,224.16,7.44]
[1757596538570,7.5,224.44,224.16,7.44]
[1757596538776,7.5,224.42,224.16,7.44]
[1757596539080,3.63674923,224.41,224.16,7.44]
[1757596539678,7.5,224.42,224.17,62.0]
[1757596539884,7.5,224.42,224.18,7.44]
[1757596540278,7.5,224.42,224.2,7.44]
[1757596542081,7.5,224.4,224.2,7.44]
[1757596544584,7.5,224.4,224.22,62.4238]
[1757596544787,7.5,224.4,224.23,7.44]
[1757596544986,62.3773,224.39,224.23,7.44]
[1757596545187,7.5,224.4,224.23,7.44]
[1757596545484,7.5,224.45,224.23,7.44]
[1757596546882,8.81163427,224.5,224.24,42.34]
[1757596547086,7.5,224.48,224.23,7.44]
[1757596547284,7.5,224.46,224.24,4.46]
[1757596547587,7.5,224.44,224.25,7.44]
[1757596549393,29.09,224.49,224.25,30.6]
[1757596549589,9.90238805,224.48,224.25,30.6]
[1757596549882,7.5,224.46,224.25,30.6]
[1757596550084,7.5,224.44,224.25,30.6]
[1757596550288,26.74,224.46,224.25,30.6]
[1757596550489,7.5,224.44,224.25,30.6]
[1757596550785,7.5,224.44,224.26,7.44]
[1757596551386,7.5,224.49,224.26,7.44]
[1757596551585,7.5,224.49,224.28,7.44]
[1757596551886,7.5,224.49,224.29,7.44]
[1757596552286,7.5,224.49,224.31,7.44]
[1757596554090,7.5,224.49,224.28,299.5]
[1757596554091,7.5,224.49,224.33,7.44]
[1757596556993,7.5,224.49,224.35,7.44]
[1757596557294,7.5,224.49,224.35,128.2]
[1757596557786,7.5,224.49,224.35,7.44]
[1757596558092,7.5,224.49,224.36,120.74]
[1757596558292,7.19,224.54,224.37,6.93]
[1757596559302,7.19,224.6,224.37,6.93]
[1757596559698,7.19,224.6,224.45,6.93]
[1757596559898,7.19,224.6,224.46,4.14]
[1757596560097,4.007,224.56,224.47,4.0083]
[1757596560294,7.19,224.6,224.48,62.3511]
[1757596560496,13.18904641,224.71,224.55,62.3326]
[1757596560703,13.18904641,224.71,224.61,6.93]
[1757596560704,17.19324641,224.71,224.61,6.93]
[1757596561001,7.19,224.72,224.61,6.93]
[1757596561195,4.0045,224.7,224.61,6.93]
[1757596561391,62.2717,224.77,224.61,6.93]
[1757596561392,7.19,224.76,224.62,115.48]
[1757596561598,7.19,224.76,224.63,6.93]
[1757596561999,7.19,224.84,224.65,6.93]
[1757596562193,62.2613,224.81,224.66,62.0]
[1757596562398,4.0025,224.81,224.68,4.0046]
[1757596562601,7.19,224.84,224.67,127.85]
[1757596562992,62.2719,224.77,224.67,6.93]
[1757596563197,69.4649,224.76,224.62,117.7]
[1757596563498,4.0043,224.71,224.61,6.93]
[1757596564097,69.4517,224.81,224.61,120.98]
[1757596564400,69.4517,224.81,224.63,6.93]
[1757596564401,7.19,224.81,224.63,6.93]
[1757596564700,62.264,224.8,224.64,59.08]
[1757596565106,62.2666,224.79,224.64,115.08]
[1757596565404,69.4625,224.77,224.64,121.0]
[1757596565598,4.0038,224.74,224.63,6.93]
[1757596565801,62.2785,224.75,224.63,6.93]
[1757596565997,4.0041,224.72,224.63,6.93]
[1757596566198,62.2854,224.73,224.63,6.93]
[1757596566399,62.2804,224.74,224.56,4.0068]
[1757596566400,62.2885,224.71,224.58,120.88]
[1757596566602,62.2996,224.67,224.52,319.95105665]
[1757596566804,62.3003,224.67,224.52,440.83105665]
[1757596567009,62.3023,224.66,224.52,427.15]
[1757596567209,4.0058,224.62,224.52,427.15]
[1757596567506,62.3118,224.63,224.52,306.27]
[1757596568510,62.3035,224.66,224.52,306.27]
[1757596568704,62.2974,224.68,224.52,306.27]
[1757596568909,7.19,224.69,224.53,6.93]
[1757596569505,62.2855,224.73,224.56,6.93]
[1757596570013,4.0045,224.7,224.58,4.0064]
[1757596570320,7.19,224.75,224.6,6.93]
[1757596570611,4.0037,224.74,224.61,6.93]
[1757596571013,69.471,224.74,224.61,6.93]
[1757596571217,7.19,224.74,224.61,10.9359]
[1757596571413,7.19,224.74,224.61,6.93]
[1757596571614,62.2631,224.81,224.61,6.93]
[1757596571615,7.19,224.8,224.62,6.93]
[1757596571911,4.0031,224.78,224.62,6.93]
[1757596572215,62.2534,224.84,224.64,6.93]
[1757596572421,7.19,224.85,224.69,6.93]
[1757596572716,7.19,224.85,224.7,120.7]
[1757596573019,4.0023,224.82,224.7,120.7]
[1757596573320,120.68,224.91,224.63,6.93]
[1757596573514,62.2833,224.73,224.52,62.3398]
[1757596573818,71.08873427,224.76,224.48,20.28]
[1757596573819,7.19,224.65,224.48,6.93]
[1757596574219,7.19,224.65,224.49,128.0]
[1757596574714,7.19,224.71,224.5,6.93]
[1757596576315,7.19,224.71,224.51,127.84]
[1757596577113,7.19,224.71,224.52,110.53]
[1757596577316,7.19,224.71,224.53,6.93]
[1757596577712,7.19,224.71,224.54,47.78]
[1757596578313,7.19,224.67,224.46,6.93]
[1757596578518,16.00163427,224.67,224.47,128.16]
[1757596578720,16.00163427,224.67,224.48,6.93]
[1757596579019,7.19,224.67,224.48,6.93]
[1757596579919,7.19,224.67,224.49,125.48]
[1757596580216,7.19,224.67,224.5,6.93]
[1757596580621,7.19,224.75,224.5,6.93]
[1757596580917,3.14103949,224.74,224.5,6.93]
[1757596581221,6.69369349,224.73,224.5,6.93]
[1757596581423,7.19,224.72,224.51,6.93]
[1757596583024,7.19,224.78,224.51,6.93]
[1757596583226,7.19,224.78,224.54,8.81163427]
[1757596583415,7.19,224.78,224.55,6.93]
[1757596583815,7.19,224.84,224.55,6.93]
[1757596584523,7.19,224.81,224.57,6.93]
[1757596584820,7.19,224.81,224.59,6.93]
[1757596585021,7.19,224.81,224.61,6.93]
[1757596586421,7.19,224.81,224.63,6.93]
[1757596587217,7.19,224.87,224.63,6.93]
[1757596589819,7.19,224.87,224.66,7.1]
[1757596590426,7.19,224.87,224.68,7.1]
[1757596590830,7.19,224.87,224.69,73.72]
[1757596591120,7.19,224.87,224.7,7.1]
[1757596591328,7.19,224.87,224.71,8.64]
[1757596591523,7.19,224.87,224.72,7.1]
[1757596592622,7.19,224.87,224.73,17.06]
[1757596592815,7.19,224.87,224.74,29.42]
[1757596593017,7.19,224.87,224.75,36.56]
[1757596593327,7.19,224.87,224.72,7.1]
[1757596593622,7.19,224.87,224.76,43.3]
[1757596593926,7.19,224.87,224.76,47.56]
[1757596594128,7.19,224.87,224.72,7.1]
[1757596594427,7.08,224.92,224.74,7.1]
[1757596595125,7.08,224.92,224.75,19.02]
[1757596595421,7.08,224.92,224.77,7.1]